bitfinex/quotes_BTCUSD_20250716
["timestamp","ask_amount","ask_price","bid_price","bid_amount"]
[1752648699446,0.72267016,118370.0,118360.0,0.03801]
[1752648699666,0.72255016,118370.0,118360.0,0.03801]
[1752648706706,0.72255016,118370.0,118360.0,0.03497]
[1752648706934,0.72255016,118370.0,118360.0,0.0329]
[1752648709443,0.72255016,118370.0,118360.0,0.0173]
[1752648709660,0.72255016,118370.0,118360.0,0.0335]
[1752648710308,0.38817201,118370.0,118360.0,0.03664]
[1752648710539,0.38817201,118370.0,118360.0,0.03876]
[1752648710757,0.72255016,118370.0,118360.0,0.03876]
[1752648711257,0.38817201,118370.0,118360.0,0.03876]
[1752648711471,0.72255016,118370.0,118360.0,0.03876]
[1752648716630,0.08551028,118370.0,118360.0,0.22463309]
[1752648716813,0.09395779,118370.0,118360.0,0.56745954]
[1752648717093,0.11085317,118370.0,118360.0,0.56745954]
[1752648717306,5.029e-05,118380.0,118370.0,0.22670512]
[1752648717517,0.11934897,118380.0,118370.0,0.22882512]
[1752648717728,0.11934897,118380.0,118370.0,0.36360512]
[1752648718189,0.11934854,118380.0,118370.0,0.36360512]
[1752648718417,0.46217392,118380.0,118370.0,0.36360512]
[1752648718723,0.12779577,118380.0,118370.0,0.36360512]
[1752648720317,0.29674372,118380.0,118370.0,0.36360512]
[1752648720782,0.11090167,118380.0,118370.0,0.36360512]
[1752648720993,0.1193489,118380.0,118370.0,0.36360512]
[1752648721648,0.1277962,118380.0,118370.0,0.36360512]
[1752648722983,0.1193489,118380.0,118370.0,0.36360512]
[1752648724193,0.10245452,118380.0,118370.0,0.36360512]
[1752648724406,0.11090125,118380.0,118370.0,0.36360512]
[1752648724581,5.029e-05,118380.0,118370.0,0.69798327]
[1752648725661,0.00849702,118380.0,118370.0,0.69798327]
[1752648726275,0.01694389,118380.0,118370.0,0.36360512]
[1752648726485,0.01694389,118380.0,118370.0,0.69798327]
[1752648726670,0.00849702,118380.0,118370.0,0.69798327]
[1752648726846,0.00849702,118380.0,118370.0,0.36360512]
[1752648727060,0.00849702,118380.0,118370.0,0.69798327]
[1752648727268,5.029e-05,118380.0,118370.0,0.69798327]
[1752648727515,0.00849709,118380.0,118370.0,0.69798327]
[1752648727718,0.01694403,118380.0,118370.0,0.69798327]
[1752648728061,0.02539104,118380.0,118370.0,0.69798327]
[1752648728404,0.01694403,118380.0,118370.0,0.69798327]
[1752648728608,0.01694403,118380.0,118370.0,0.36360512]
[1752648728820,0.01694403,118380.0,118370.0,0.69798327]
[1752648729265,0.00849709,118380.0,118370.0,0.36360512]
[1752648729475,0.01694403,118380.0,118370.0,0.69798327]
[1752648730501,0.02539111,118380.0,118370.0,0.69798327]
[1752648731047,0.03383834,118380.0,118370.0,0.69798327]
[1752648731475,0.02539111,118380.0,118370.0,0.36360512]
[1752648732454,0.03383834,118380.0,118370.0,0.36360512]
[1752648732667,0.03383826,118380.0,118370.0,0.36360512]
[1752648734197,0.02539111,118380.0,118370.0,0.36360512]
[1752648735488,0.03383834,118380.0,118370.0,0.36360512]
[1752648735698,0.02539111,118380.0,118370.0,0.36360512]
[1752648735920,0.03383834,118380.0,118370.0,0.36360512]
[1752648736125,0.02539111,118380.0,118370.0,0.36360512]
[1752648736882,0.03383834,118380.0,118370.0,0.36360512]
[1752648737128,0.02539111,118380.0,118370.0,0.69798327]
[1752648737335,0.01694403,118380.0,118370.0,0.69798327]
[1752648739839,0.02539111,118380.0,118370.0,0.69798327]
[1752648740837,0.03383834,118380.0,118370.0,0.69798327]
[1752648741894,0.04228564,118380.0,118370.0,0.69798327]
[1752648743380,0.04228564,118380.0,118370.0,0.36360512]
[1752648744010,0.03383834,118380.0,118370.0,0.36360512]
[1752648744212,0.02539111,118380.0,118370.0,0.36360512]
[1752648744651,0.03383834,118380.0,118370.0,0.36360512]
[1752648745399,0.03183834,118380.0,118370.0,0.36360512]
[1752648745642,0.02339111,118380.0,118370.0,0.36360512]
[1752648747344,0.01494403,118380.0,118370.0,0.36360512]
[1752648747574,0.02339111,118380.0,118370.0,0.69798327]
[1752648747794,0.0149441,118380.0,118370.0,0.69798327]
[1752648749646,0.0149441,118380.0,118370.0,0.36360512]
[1752648749856,0.0149441,118380.0,118370.0,0.69798327]
[1752648751413,0.00649709,118380.0,118370.0,0.69798327]
[1752648751555,0.01494403,118380.0,118370.0,0.69798327]
[1752648752645,0.02339118,118380.0,118370.0,0.69798327]
[1752648752782,0.02339111,118380.0,118370.0,0.36360512]
[1752648753962,0.01494403,118380.0,118370.0,0.36360512]
[1752648754360,0.02339104,118380.0,118370.0,0.36360512]
[1752648754801,0.03183819,118380.0,118370.0,0.36360512]
[1752648756512,0.03183812,118380.0,118370.0,0.36360512]
[1752648757421,0.3746635,118380.0,118370.0,0.36360512]
[1752648757663,0.37466342,118380.0,118370.0,0.36360512]
[1752648758208,0.37661356,118380.0,118370.0,0.36360512]
[1752648758421,0.36816633,118380.0,118370.0,0.36360512]
[1752648758639,0.02534068,118380.0,118370.0,0.36360512]
[1752648759843,0.03378783,118380.0,118370.0,0.36360512]
[1752648760055,0.02534068,118380.0,118370.0,0.36360512]
[1752648761006,0.36816598,118380.0,118370.0,0.36360512]
[1752648761241,0.35971883,118380.0,118370.0,0.36360512]
[1752648761545,0.02534068,118380.0,118370.0,0.36360512]
[1752648762052,0.35135032,118390.0,118380.0,0.2244887]
[1752648762278,0.11937497,118390.0,118380.0,0.22661639]
[1752648762539,0.44530675,118390.0,118380.0,0.22976639]
[1752648762760,0.45375305,118390.0,118380.0,0.22976639]
[1752648763441,0.46319949,118390.0,118380.0,0.22976639]
[1752648763760,0.00952609,118390.0,118380.0,0.22976639]
[1752648763975,0.00952609,118390.0,118380.0,0.56414454]
[1752648763976,0.01797224,118390.0,118380.0,0.56414454]
[1752648764617,0.00944615,118390.0,118380.0,0.56414454]
[1752648765244,0.00944615,118390.0,118380.0,0.55974454]
[1752648765668,0.00944615,118390.0,118380.0,0.22536639]
[1752648765890,0.00844615,118390.0,118380.0,0.22536639]
[1752648766101,0.00844615,118390.0,118380.0,0.22636639]
[1752648766537,0.53718266,118400.0,118390.0,0.18582599]
[1752648766764,0.44532751,118400.0,118390.0,0.32771222]
[1752648766984,0.44532751,118400.0,118390.0,0.33086222]
[1752648767469,0.08551028,118400.0,118390.0,0.70528652]
[1752648767696,0.41988843,118400.0,118390.0,0.37090837]
[1752648767946,0.08551028,118400.0,118390.0,0.37090837]
[1752648768897,0.41988843,118400.0,118390.0,0.37090837]
[1752648769328,0.4283338,118400.0,118390.0,0.37090837]
[1752648770015,0.41988843,118400.0,118390.0,0.37090837]
[1752648772319,0.08551028,118400.0,118390.0,0.37090837]
[1752648772572,0.41988843,118400.0,118390.0,0.37090837]
[1752648772959,0.08551028,118400.0,118390.0,0.37090837]
[1752648773178,0.41988843,118400.0,118390.0,0.37090837]
[1752648773387,0.42833373,118400.0,118390.0,0.37090837]
[1752648773675,0.41688843,118400.0,118390.0,0.37090837]
[1752648774164,0.08251028,118400.0,118390.0,0.37090837]
[1752648774341,0.41688843,118400.0,118390.0,0.37090837]
[1752648776025,0.08251028,118400.0,118390.0,0.37090837]
[1752648776246,0.41688843,118400.0,118390.0,0.37090837]
[1752648776452,0.33437815,118400.0,118390.0,0.37090837]
[1752648776882,0.50543382,118410.0,118400.0,0.19425588]
[1752648777099,0.44741674,118410.0,118400.0,0.19940588]
[1752648777310,0.43052735,118410.0,118400.0,0.21500588]
[1752648777521,0.43699208,118410.0,118400.0,0.21500588]
[1752648777751,0.42854735,118410.0,118400.0,0.23020588]
[1752648778174,0.42954735,118410.0,118400.0,0.23020588]
[1752648778593,0.42854735,118410.0,118400.0,0.23020588]
[1752648778813,0.43699201,118410.0,118400.0,0.23020588]
[1752648779242,0.42854735,118410.0,118400.0,0.23020588]
[1752648779455,0.43699201,118410.0,118400.0,0.23020588]
[1752648779654,0.10261386,118410.0,118400.0,0.23020588]
[1752648779863,0.43699201,118410.0,118400.0,0.23020588]
[1752648780289,0.44543688,118410.0,118400.0,0.23020588]
[1752648780494,0.44543688,118410.0,118400.0,0.21500588]
[1752648780703,0.44742688,118410.0,118400.0,0.21500588]
[1752648780907,0.45587189,118410.0,118400.0,0.21500588]
[1752648781340,0.45587189,118410.0,118400.0,0.19940588]
[1752648781563,0.46431705,118410.0,118400.0,0.19940595]
[1752648782011,0.46431705,118410.0,118400.0,0.20785139]
[1752648782238,0.46431705,118410.0,118400.0,0.20270139]
[1752648783482,0.6332217,118410.0,118400.0,0.18581044]
[1752648783701,0.99333519,118410.0,118400.0,0.18581058]
[1752648783945,0.65895704,118410.0,118400.0,0.18581058]
[1752648784187,0.99333519,118410.0,118400.0,0.18581058]
[1752648784420,0.98489032,118410.0,118400.0,0.17736478]
[1752648784770,0.98489032,118410.0,118400.0,0.17736485]
[1752648784989,0.02533711,118400.0,118390.0,0.32878222]
[1752648785218,0.70253892,118400.0,118390.0,0.32033599]
[1752648785444,0.87344819,118400.0,118390.0,0.32033599]
[1752648785679,0.87344819,118400.0,118390.0,0.32233599]
[1752648786111,0.86500261,118400.0,118390.0,0.32233613]
[1752648786330,0.85655688,118400.0,118390.0,0.32233613]
[1752648786557,0.92517549,118400.0,118380.0,0.21961923]
[1752648786769,0.59079734,118400.0,118390.0,0.31718641]
[1752648786949,0.92517549,118400.0,118390.0,0.31718641]
[1752648787413,0.92517549,118400.0,118390.0,0.32563285]
[1752648787618,0.25641919,118400.0,118390.0,0.32663285]
[1752648787843,0.92517549,118400.0,118390.0,0.32663285]
[1752648789598,0.92517549,118400.0,118390.0,0.31288983]
[1752648790026,0.92517549,118400.0,118390.0,0.13236]
[1752648790520,0.92517549,118400.0,118390.0,0.30129318]
[1752648791278,0.92517549,118400.0,118390.0,0.30973983]
[1752648792107,0.25641919,118400.0,118390.0,0.30973983]
[1752648792322,0.92517549,118400.0,118390.0,0.30973983]
[1752648793227,0.92417549,118400.0,118390.0,0.30973983]
[1752648794032,0.25541919,118400.0,118390.0,0.31818641]
[1752648794244,0.92417549,118400.0,118390.0,0.31818641]
[1752648794464,0.25541919,118400.0,118390.0,0.32133641]
[1752648794662,0.25541919,118400.0,118390.0,0.32978285]
[1752648794663,0.58979734,118400.0,118390.0,0.32978285]
[1752648794878,0.58979734,118400.0,118390.0,0.34784285]
[1752648795218,0.25541919,118400.0,118390.0,0.34784285]
[1752648795423,0.58979734,118400.0,118390.0,0.33939641]
[1752648795858,0.58979734,118400.0,118390.0,0.35439641]
[1752648796079,0.58979734,118400.0,118390.0,0.36284292]
[1752648796820,0.62457968,118400.0,118390.0,0.37128929]
[1752648797067,0.61613438,118400.0,118390.0,0.37128929]
[1752648797281,0.60768887,118400.0,118390.0,0.36284292]
[1752648797541,0.59924321,118400.0,118390.0,0.36284292]
[1752648799420,0.93362136,118400.0,118390.0,0.36284292]
[1752648799977,0.93362136,118400.0,118390.0,0.37128936]
[1752648800618,0.93362136,118400.0,118390.0,0.37973573]
[1752648801028,0.59924321,118400.0,118390.0,0.37973573]
[1752648802423,0.60768887,118400.0,118390.0,0.37973503]
[1752648802633,0.61613481,118400.0,118390.0,0.37973503]
[1752648803322,0.43876996,118400.0,118390.0,0.37973503]
[1752648803548,0.60569887,118400.0,118390.0,0.23148229]
[1752648803752,0.60569887,118400.0,118390.0,0.36284229]
[1752648803955,0.60569887,118400.0,118390.0,0.37128852]
[1752648805831,0.60569887,118400.0,118390.0,0.36284229]
[1752648807360,0.60768887,118400.0,118390.0,0.36284229]
[1752648808430,0.27331072,118400.0,118390.0,0.36284229]
[1752648808639,0.60768887,118400.0,118390.0,0.36284229]
[1752648810013,0.60768887,118400.0,118390.0,0.35439599]
[1752648810651,0.60768887,118400.0,118390.0,0.36284229]
[1752648811737,0.08750028,118400.0,118390.0,0.36284229]
[1752648811956,0.02554859,118410.0,118400.0,0.22505588]
[1752648812185,0.03399368,118410.0,118400.0,0.22711588]
[1752648812390,0.03399368,118410.0,118400.0,0.23026588]
[1752648812654,0.36837183,118410.0,118400.0,0.23026588]
[1752648813101,0.45388211,118410.0,118400.0,0.23026588]
[1752648813343,0.45388211,118410.0,118400.0,0.23554888]
[1752648813571,0.45354596,118410.0,118400.0,0.23554888]
[1752648814443,0.44510087,118410.0,118400.0,0.23554888]
[1752648814727,0.45354596,118410.0,118400.0,0.23554888]
[1752648814950,0.46199112,118410.0,118400.0,0.23554888]
[1752648815602,0.45354596,118410.0,118400.0,0.23554888]
[1752648816763,0.45354596,118410.0,118400.0,0.23554887]
[1752648819218,0.44510087,118410.0,118400.0,0.23554887]
[1752648819481,0.11916781,118410.0,118400.0,0.23554887]
[1752648819739,0.45354596,118410.0,118400.0,0.23554887]
[1752648820129,0.10239995,118410.0,118400.0,0.23554887]
[1752648820568,0.4367781,118410.0,118400.0,0.23554887]
[1752648820792,0.44522311,118410.0,118400.0,0.23554887]
[1752648821224,0.11084496,118410.0,118400.0,0.23554887]
[1752648821440,0.4367781,118410.0,118400.0,0.23554887]
[1752648822326,0.44522319,118410.0,118400.0,0.23554887]
[1752648824097,0.11084504,118410.0,118400.0,0.23554887]
[1752648824308,0.44522319,118410.0,118400.0,0.23554887]
[1752648825195,0.622573,118410.0,118400.0,0.23554894]
[1752648825404,0.45366835,118410.0,118400.0,0.24399438]
[1752648827382,0.1192902,118410.0,118400.0,0.24399438]
[1752648827625,0.45366835,118410.0,118400.0,0.24399438]
[1752648828248,0.44522319,118410.0,118400.0,0.24399438]
[1752648829601,0.62257307,118410.0,118400.0,0.24399438]
[1752648830641,0.44522319,118410.0,118400.0,0.24399438]
[1752648831287,0.44522319,118410.0,118400.0,0.24091438]
[1752648833368,0.45366835,118410.0,118400.0,0.24091438]
[1752648834005,0.624553,118410.0,118400.0,0.22402343]
[1752648834217,0.624553,118410.0,118400.0,0.20037782]
[1752648834433,0.60766333,118410.0,118400.0,0.18264789]
[1752648834651,0.93359639,118410.0,118400.0,0.00528304]
[1752648834860,0.59921824,118410.0,118400.0,0.00528304]
[1752648835351,0.61635909,118410.0,118400.0,0.00528304]
[1752648835575,0.98233724,118410.0,118400.0,0.00528304]
[1752648838439,0.95073724,118410.0,118400.0,0.00528304]
[1752648838677,1.08305724,118410.0,118400.0,0.00528304]
[1752648839162,1.11505724,118410.0,118400.0,0.00528304]
[1752648840091,5.93935139,118410.0,118400.0,0.00528304]
[1752648840304,5.63034424,118410.0,118400.0,0.00528304]
[1752648842039,0.20881292,118390.0,118380.0,0.22721069]
[1752648842249,0.63069135,118390.0,118380.0,0.23255069]
[1752648843114,0.63069135,118390.0,118380.0,0.22510368]
[1752648843325,0.62224527,118390.0,118380.0,0.1954166]
[1752648843470,0.62224527,118390.0,118380.0,0.1964166]
[1752648844086,0.62224527,118390.0,118380.0,0.2127166]
[1752648844295,0.61379897,118390.0,118380.0,0.17952222]
[1752648844505,0.60535246,118390.0,118380.0,0.17952222]
[1752648844866,0.60535246,118390.0,118380.0,0.18796952]
[1752648845104,0.60535246,118390.0,118380.0,0.19641675]
[1752648845733,0.60535246,118390.0,118380.0,0.00212769]
[1752648845957,0.60535246,118390.0,118380.0,0.17107514]
[1752648846167,0.60535246,118390.0,118380.0,0.17952244]
[1752648846376,0.60535246,118390.0,118380.0,0.18796967]
[1752648846581,0.73747246,118390.0,118380.0,0.18796967]
[1752648847002,0.73747246,118390.0,118380.0,0.19641682]
[1752648847207,0.73747246,118390.0,118380.0,0.23184682]
[1752648847416,0.73747246,118390.0,118380.0,0.2424039]
[1752648848041,0.73747246,118390.0,118380.0,0.25085091]
[1752648848583,0.60535246,118390.0,118380.0,0.25085091]
[1752648850195,0.60535246,118390.0,118380.0,0.2424039]
[1752648852194,0.27097431,118390.0,118380.0,0.25085091]
[1752648852425,0.11694387,118390.0,118380.0,0.25085048]
[1752648852692,0.46821461,118390.0,118380.0,0.25085048]
[1752648853160,0.64559437,118390.0,118380.0,0.25085048]
[1752648853375,0.64559494,118390.0,118380.0,0.25085048]
[1752648853801,0.6306622,118390.0,118380.0,0.2339566]
[1752648854470,0.62221569,118390.0,118380.0,0.20136237]
[1752648854758,0.62221569,118390.0,118380.0,0.20980952]
[1752648856395,0.62221569,118390.0,118380.0,0.22480952]
[1752648856814,0.63049408,118390.0,118380.0,0.22480952]
[1752648859349,0.63049408,118390.0,118380.0,0.21636237]
[1752648860103,0.63049408,118390.0,118380.0,0.22480952]
[1752648860989,0.63049408,118390.0,118380.0,0.2332566]
[1752648861498,0.63049408,118390.0,118380.0,0.24170361]
[1752648863614,0.63049408,118390.0,118380.0,0.22480952]
[1752648864656,0.6220475,118390.0,118380.0,0.22480952]
[1752648865540,0.6220475,118390.0,118380.0,0.2332566]
[1752648866164,0.6220475,118390.0,118380.0,0.00212769]
[1752648866379,0.61360085,118390.0,118380.0,0.00212769]
[1752648867304,0.74516085,118390.0,118380.0,0.00212769]
[1752648870267,1.082139,118390.0,118380.0,0.00212769]
[1752648871307,1.082139,118390.0,118380.0,0.00112769]
[1752648871528,0.74776085,118390.0,118380.0,0.00112769]
[1752648872542,1.082139,118390.0,118380.0,0.00112769]
[1752648872744,0.74776085,118390.0,118380.0,0.00012769]
[1752648873179,0.74776085,118390.0,118380.0,0.00112769]
[1752648874073,0.74516085,118390.0,118380.0,0.00112769]
[1752648874803,0.4107827,118390.0,118380.0,0.00112769]
[1752648875020,0.74516085,118390.0,118380.0,0.00112769]
[1752648880199,0.4107827,118390.0,118380.0,0.00112769]
[1752648880416,0.74516085,118390.0,118380.0,0.00112769]
[1752648895102,1.079539,118390.0,118380.0,0.00112769]
[1752648896818,0.74516085,118390.0,118380.0,0.00112769]
[1752648900181,1.079539,118390.0,118380.0,0.00112769]
[1752648900410,1.10318843,118390.0,118380.0,0.00112769]
[1752648900622,1.082139,118390.0,118380.0,0.00112769]
[1752648900830,1.107514,118390.0,118380.0,0.00112769]
[1752648901032,5.96873,118390.0,118380.0,0.00112769]
[1752648901849,6.60310815,118390.0,118380.0,0.00112769]
[1752648902040,6.68886777,118390.0,118380.0,0.00012769]
[1752648903093,6.35448962,118390.0,118380.0,0.00012769]
[1752648903303,6.35548962,118390.0,118380.0,4.522e-05]
[1752648903536,6.68986777,118390.0,118380.0,4.522e-05]
[1752648903765,6.60410815,118390.0,118380.0,4.522e-05]
[1752648904628,5.6009737,118390.0,118380.0,4.522e-05]
[1752648904860,6.26973,118390.0,118380.0,4.522e-05]
[1752648909885,6.26973,118390.0,118380.0,0.00054922]
[1752648911341,6.23843,118390.0,118380.0,0.00054922]
[1752648911783,5.455351,118390.0,118380.0,0.02165922]
[1752648911974,5.455351,118390.0,118380.0,0.21425397]
[1752648911975,1.11180781,118390.0,118380.0,0.21425397]
[1752648912174,1.12634866,118390.0,118380.0,0.21425397]
[1752648912399,1.12634866,118390.0,118380.0,0.2227012]
[1752648912830,1.11790236,118390.0,118380.0,0.2227012]
[1752648913433,1.10945585,118390.0,118380.0,0.2227012]
[1752648913660,1.10945585,118390.0,118380.0,0.21425397]
[1752648914414,1.10945585,118390.0,118380.0,0.03685922]
[1752648915012,1.22081566,118390.0,118380.0,0.03685922]
[1752648916313,1.22081566,118390.0,118380.0,0.20580667]
[1752648916468,1.22081566,118390.0,118380.0,0.03685922]
[1752648916870,1.22081566,118390.0,118380.0,0.20580667]
[1752648917068,1.22081566,118390.0,118380.0,0.22270134]
[1752648918410,1.22081566,118390.0,118380.0,0.03685922]
[1752648919047,1.22081566,118390.0,118380.0,0.20580667]
[1752648919420,1.22081566,118390.0,118380.0,0.21425397]
[1752648920029,1.22081566,118390.0,118380.0,0.2227012]
[1752648920256,0.75782231,118390.0,118380.0,0.2227012]
[1752648920432,0.32053079,118390.0,118380.0,0.23114828]
[1752648920862,0.32053079,118390.0,118380.0,0.23959522]
[1752648921060,0.1032349,118390.0,118380.0,0.23959522]
[1752648921259,0.11168083,118390.0,118380.0,0.37944209]
[1752648921441,0.12012713,118390.0,118380.0,0.37944209]
[1752648921765,0.10323468,118390.0,118380.0,0.37944209]
[1752648922067,0.12857365,118390.0,118380.0,0.37944209]
[1752648922490,0.12012721,118390.0,118380.0,0.37944209]
[1752648922695,0.12857358,118390.0,118380.0,0.37944209]
[1752648922847,0.11168091,118390.0,118380.0,0.37944209]
[1752648923057,0.12012728,118390.0,118380.0,0.37944209]
[1752648924049,0.12757379,118390.0,118380.0,0.37944209]
[1752648925158,0.12757372,118390.0,118380.0,0.37944209]
[1752648925753,0.13602023,118390.0,118380.0,0.37944209]
[1752648929396,0.1360208,118390.0,118380.0,0.37944209]
[1752648930359,0.58175876,118390.0,118380.0,0.37944209]
[1752648931074,0.1360208,118390.0,118380.0,0.37944209]
[1752648931311,0.57331218,118390.0,118380.0,0.37944209]
[1752648934704,0.55641923,118390.0,118380.0,0.37944209]
[1752648934889,0.55641887,118390.0,118380.0,0.37944209]
[1752648935446,0.11068091,118390.0,118380.0,0.37944209]
[1752648936022,0.11912735,118390.0,118380.0,0.37944209]
[1752648937191,0.45337222,118390.0,118380.0,0.37944209]
[1752648937399,0.44492578,118390.0,118380.0,0.37944209]
[1752648938005,0.46181866,118390.0,118380.0,0.37944209]
[1752648938176,0.45337215,118390.0,118380.0,0.37944209]
[1752648939345,0.11912728,118390.0,118380.0,0.37944209]
[1752648939501,0.43647955,118390.0,118380.0,0.37944209]
[1752648939716,0.01689095,118400.0,118390.0,0.22557228]
[1752648940042,0.4450919,118400.0,118390.0,0.23058228]
[1752648940999,0.4460919,118400.0,118390.0,0.23058228]
[1752648941811,0.45462345,118400.0,118390.0,0.23058228]
[1752648942994,0.12037858,118400.0,118390.0,0.23058228]
[1752648943199,0.45462345,118400.0,118390.0,0.23058228]
[1752648944156,0.42920052,118400.0,118390.0,0.23058228]
[1752648944294,0.4376461,118400.0,118390.0,0.23058228]
[1752648944940,0.11184689,118400.0,118390.0,0.23058228]
[1752648945141,0.45445635,118400.0,118390.0,0.23058228]
[1752648947869,0.46290208,118400.0,118390.0,0.23058228]
[1752648948082,0.45445635,118400.0,118390.0,0.23058228]
[1752648948533,0.46290215,118400.0,118390.0,0.23058228]
[1752648948950,0.46290208,118400.0,118390.0,0.23058228]
[1752648949392,0.47134788,118400.0,118390.0,0.23058228]
[1752648952719,0.12021148,118400.0,118390.0,0.23058228]
[1752648952860,0.45445635,118400.0,118390.0,0.23058228]
[1752648953247,0.46290208,118400.0,118390.0,0.23058228]
[1752648953927,0.45445635,118400.0,118390.0,0.23058228]
[1752648954289,0.11176582,118400.0,118390.0,0.23058228]
[1752648954494,0.44601069,118400.0,118390.0,0.23058228]
[1752648955156,0.45445635,118400.0,118390.0,0.23058228]
[1752648955889,0.46290215,118400.0,118390.0,0.23058228]
[1752648956628,0.45445635,118400.0,118390.0,0.23058228]
[1752648956841,0.46290208,118400.0,118390.0,0.23058228]
[1752648957192,0.44601069,118400.0,118390.0,0.23058228]
[1752648957394,0.44601062,118400.0,118390.0,0.23058228]
[1752648957597,0.4544562,118400.0,118390.0,0.23058228]
[1752648957798,0.46290193,118400.0,118390.0,0.23058228]
[1752648960203,0.4544562,118400.0,118390.0,0.23058228]
[1752648960616,0.44609161,118400.0,118390.0,0.23058228]
[1752648961051,0.43764603,118400.0,118390.0,0.23058228]
[1752648961480,0.10340116,118400.0,118390.0,0.23058228]
[1752648961685,0.45453741,118400.0,118390.0,0.23058228]
[1752648961887,0.44609161,118400.0,118390.0,0.23058228]
[1752648962519,0.11184674,118400.0,118390.0,0.23058228]
[1752648962698,0.44609161,118400.0,118390.0,0.23058228]
[1752648962834,0.45453734,118400.0,118390.0,0.23058228]
[1752648963051,0.44609161,118400.0,118390.0,0.23058228]
[1752648963477,0.11184674,118400.0,118390.0,0.22058228]
[1752648963696,0.42920052,118400.0,118390.0,0.22902843]
[1752648963940,0.4376461,118400.0,118390.0,0.22902843]
[1752648965368,0.001,118400.0,118390.0,0.22902843]
[1752648965907,0.00944551,118400.0,118390.0,0.22902843]
[1752648966157,0.34369024,118400.0,118390.0,0.22902843]
[1752648966407,0.0094453,118400.0,118390.0,0.22902843]
[1752648966655,0.34369017,118400.0,118390.0,0.22902843]
[1752648967417,0.34269017,118400.0,118390.0,0.22902843]
[1752648967672,0.35113554,118400.0,118390.0,0.22902843]
[1752648968140,0.0084453,118400.0,118390.0,0.22902843]
[1752648968390,0.03370015,118410.0,118400.0,0.02533697]
[1752648968633,0.45345523,118410.0,118400.0,0.35914588]
[1752648968854,0.45345523,118410.0,118400.0,0.36223588]
[1752648969192,0.46190039,118410.0,118400.0,0.36223588]
[1752648969821,0.63925027,118410.0,118400.0,0.36223588]
[1752648970014,0.47034562,118410.0,118400.0,0.36223588]
[1752648970662,0.64025027,118410.0,118400.0,0.36223588]
[1752648971402,0.64025027,118410.0,118400.0,0.35379044]
[1752648971616,0.64220027,118410.0,118400.0,0.36223602]
[1752648972218,0.6253106,118410.0,118400.0,0.36223602]
[1752648972417,0.6253106,118410.0,118400.0,0.34683602]
[1752648972619,0.61795071,118410.0,118400.0,0.34683602]
[1752648974415,0.61795071,118410.0,118400.0,0.35528153]
[1752648975146,0.61795071,118410.0,118400.0,0.37188153]
[1752648975362,0.28370584,118410.0,118400.0,0.37188153]
[1752648975570,0.61795071,118410.0,118400.0,0.38032697]
[1752648976912,0.61795071,118410.0,118400.0,0.16891891]
[1752648977131,0.1942558,118400.0,118390.0,0.17737976]
[1752648977364,0.01689295,118390.0,118380.0,0.20421667]
[1752648977598,0.53696423,118390.0,118380.0,0.36279813]
[1752648977821,0.35958405,118390.0,118380.0,0.371245]
[1752648978237,0.35958355,118390.0,118380.0,0.240085]
[1752648978445,0.35958355,118390.0,118380.0,0.371245]
[1752648978995,0.35958355,118390.0,118380.0,0.240085]
[1752648979209,0.35958348,118390.0,118380.0,0.240085]
[1752648979426,0.35958348,118390.0,118380.0,0.371245]
[1752648980271,0.35113711,118390.0,118380.0,0.371245]
[1752648980717,0.22511586,118400.0,118390.0,0.23481865]
[1752648980935,0.44509183,118400.0,118390.0,0.23689865]
[1752648981153,0.44509183,118400.0,118390.0,0.24001865]
[1752648981372,0.09395565,118400.0,118390.0,0.24001865]
[1752648981588,0.43664632,118400.0,118390.0,0.24001865]
[1752648982088,0.4366461,118400.0,118390.0,0.24001865]
[1752648982495,0.4450919,118400.0,118390.0,0.24001865]
[1752648982990,0.11084703,118400.0,118390.0,0.24001865]
[1752648984137,0.11929276,118400.0,118390.0,0.24001865]
[1752648984364,0.09892138,118400.0,118390.0,0.23827936]
[1752648984881,0.08203043,118400.0,118390.0,0.23827936]
[1752648985095,0.09047573,118400.0,118390.0,0.23827936]
[1752648985302,0.09892117,118400.0,118390.0,0.23827936]
[1752648986891,0.10736683,118400.0,118390.0,0.23827936]
[1752648987350,0.56138174,118400.0,118390.0,0.23827936]
[1752648989488,0.56138167,118400.0,118390.0,0.23827936]
[1752648989705,0.56982747,118400.0,118390.0,0.23827936]
[1752648990540,0.57177747,118400.0,118390.0,0.23827936]
[1752648991228,0.18582599,118390.0,118380.0,0.16949667]
[1752648991440,0.6313951,118390.0,118380.0,0.30906397]
[1752648991644,0.6333451,118390.0,118380.0,0.30906397]
[1752648991884,0.6333451,118390.0,118380.0,0.32595835]
[1752648992098,0.6333451,118390.0,118380.0,0.33440543]
[1752648992548,0.46441192,118390.0,118380.0,0.3480523]
[1752648992779,0.46441192,118390.0,118380.0,0.3632523]
[1752648993002,0.46246134,118390.0,118380.0,0.3785523]
[1752648993223,0.01689223,118390.0,118380.0,0.3785523]
[1752648993647,0.02533853,118390.0,118380.0,0.3785523]
[1752648993853,0.01689223,118390.0,118380.0,0.3785523]
[1752648994063,0.02533853,118390.0,118380.0,0.3785523]
[1752648994681,0.03378497,118390.0,118380.0,0.3785523]
[1752648994829,0.02533853,118390.0,118380.0,0.3785523]
[1752648995719,0.03378497,118390.0,118380.0,0.3785523]
[1752648996334,0.04223148,118390.0,118380.0,0.2474323]
[1752648996548,0.03378497,118390.0,118380.0,0.3785123]
[1752648996754,0.04223148,118390.0,118380.0,0.3785123]
[1752648997479,0.16991101,118410.0,118380.0,0.31422354]
[1752648997670,0.11185011,118410.0,118400.0,0.22575588]
[1752648997859,0.73476896,118410.0,118400.0,0.35047044]
[1752648998069,0.74516412,118410.0,118400.0,0.36203595]
[1752648998279,0.73671953,118410.0,118400.0,0.34683595]
[1752648998485,0.73671953,118410.0,118400.0,0.35528139]
[1752648998486,0.56781488,118410.0,118400.0,0.35528139]
[1752648998692,0.56781488,118410.0,118400.0,0.37088139]
[1752648998693,0.56036972,118410.0,118400.0,0.37088139]
[1752648999106,0.55936972,118410.0,118400.0,0.35528139]
[1752648999311,0.56781488,118410.0,118400.0,0.35528139]
[1752648999519,0.56881488,118410.0,118400.0,0.35528139]
[1752649000174,0.74616476,118410.0,118400.0,0.35528139]
[1752649004179,0.30059565,118410.0,118400.0,0.35528139]
[1752649004387,0.74616476,118410.0,118400.0,0.35528139]
[1752649005237,0.30059565,118410.0,118400.0,0.35528139]
[1752649005436,0.74616476,118410.0,118400.0,0.35528139]
[1752649005983,0.74616476,118410.0,118400.0,0.33898139]
[1752649006198,0.74616476,118410.0,118400.0,0.30844478]
[1752649006402,0.72927495,118410.0,118400.0,0.30844478]
[1752649006606,0.72927495,118410.0,118400.0,0.31689058]
[1752649006833,0.72927495,118410.0,118400.0,0.32533631]
[1752649007069,0.72927495,118410.0,118400.0,0.33378197]
[1752649007410,0.75562986,118410.0,118400.0,0.32533631]
[1752649007605,0.31006075,118410.0,118400.0,0.33378197]
[1752649007813,0.75562986,118410.0,118400.0,0.32533631]
[1752649009004,0.75302986,118410.0,118400.0,0.32533631]
[1752649009227,0.72082986,118410.0,118400.0,0.32533631]
[1752649011265,0.17736449,118400.0,118390.0,0.18058955]
[1752649011480,0.6333694,118400.0,118390.0,0.16893318]